Cogmind - Beta 9.1 @@@ ROGUE MODE // 2019.10.31 @ 22:07:02 // Halloween2019/Abominations Player: Gitida Result: Destroyed by Lesser Abomination with Etherial Claws Performance ------------- Evolutions (1) 500 Regions Visited (2) 400 Robots Destroyed (26) 130 Value Destroyed (1390) 1390 Prototype IDs (3) 60 Alien Tech Used (0) 0 Bonus (0) 0 TOTAL SCORE: 2480 Bonus ------- None Cogmind --------- Core Integrity 0/400 Matter 336/450 Energy 249/265 System Corruption 4% Temperature Cool (0) Location -9/Materials Parts ------- Power (1) Reinforced Ion Engine Propulsion (3) Light Treads Light Treads Utility (3) Large Storage Unit Large Matter Pod Weapon (2) Small Laser Improved Assault Rifle Inventory (10) Power Amplifier Medium Storage Unit Sensor Array Light Assault Rifle Light Assault Rifle EMP Blaster Peak State ------------ Power Ion Engine Propulsion Light Treads Light Treads Light Treads Utility Improved Heat Sink Large Storage Unit Light Armor Plating Weapon Particle Gun Improved Assault Rifle Inventory Light Treads Large Matter Pod Sensor Array Small Laser Small Laser Assault Rifle Light Assault Rifle Light Assault Rifle EMP Blaster Rocket Launcher [Rating: 15] Favorites ----------- Power Ion Engine Engine Ion Engine Propulsion Light Treads Treads Light Treads Utility Large Storage Unit Device Improved Heat Sink Storage Large Storage Unit Processor Signal Interpreter Protection Light Armor Plating Weapon Assault Rifle Energy Gun Particle Gun Ballistic Gun Assault Rifle Launcher Rocket Launcher Build | -11 -10 -9 ------- Run | Scr Mat Mat Slots Evolved 2 | . . 2 Power . | . . . Propulsion 1 | . . 1 Utility 1 | . . 1 Weapon . | . . . Parts Attached 36 | 5 5 26 Power 4 | 1 1 2 Engine 4 | 1 1 2 Core . | . . . Reactor . | . . . Propulsion 8 | 2 . 6 Treads 8 | 2 . 6 Leg . | . . . Wheel . | . . . Hover . | . . . Flight . | . . . Utility 8 | . 3 5 Device 1 | . . 1 Storage 4 | . 2 2 Processor 2 | . . 2 Hackware . | . . . Protection 1 | . 1 . Artifact . | . . . Weapon 16 | 2 1 13 Energy Gun 6 | 1 1 4 Energy Cannon . | . . . Ballistic Gun 7 | 1 . 6 Ballistic Cannon . | . . . Launcher 3 | . . 3 Special Weapon . | . . . Impact Weapon . | . . . Slashing Weapon . | . . . Piercing Weapon . | . . . Special Melee Weapon . | . . . Unidentified Prototypes 1 | . . 1 Parts Lost 13 | . 1 12 Power 2 | . . 2 Propulsion 3 | . . 3 Utility 3 | . . 3 Weapon 5 | . 1 4 Highest Loss Streak 2 | . 1 2 Average Slot Usage (%) 93 | . 95 92 Engine 11 | . 14 11 Treads 30 | . 28 31 Device 4 | . . 6 Storage 14 | . 14 14 Protection 7 | . 10 6 Energy Gun 10 | . 14 9 Ballistic Gun 12 | . 14 11 Launcher 1 | . . 1 Naked Turns . | . . . Heaviest Build 36 | 7 29 36 Greatest Support 60 | 40 40 60 Greatest Overweight (x) . | . . . Average Overweight (x) . | . . . Largest Inventory Capacity 10 | 4 10 10 Average Capacity 9 | 4 7 9 Most Carried 10 | 3 10 10 Average Carried 8 | 2 6 9 Final Capacity 10 | 4 10 10 Final Carried 10 | 3 10 6 Class Distribution -------------------- 58% | Scavenger-Mutant 41% | Mutant Dominant Class ---------------- Mutant | -10/Materials Scavenger-Mutant | -9/Materials Resources | -11 -10 -9 ----------- Run | Scr Mat Mat Matter Collected 981 | 250 262 469 Remotely . | . . . Salvage Created 1087 | . 412 675 Parts 96 | . 25 71 Haulers Intercepted . | . . . Recyclers Shooed . | . . . Parts Field Recycled . | . . . Retrieved Matter . | . . . Parts Self-Destructed . | . . . Prevented . | . . . Kills | -11 -10 -9 ------- Run | Scr Mat Mat Combat Hostiles Destroyed 25 | . 9 16 Guns 22 | . 9 13 AOE 3 | . . 3 Classes Destroyed 4 | . 1 3 Builder 1 | . . 1 Swarmer 2 | . . 2 Sentry 1 | . . 1 Abomination 22 | . 9 13 Best Kill Streak 5 | . 3 5 Combat Bots Only 4 | . 3 4 Max Kills in Single Turn 1 | . 1 1 Gunslinging . | . . . Exploded 1 | . . 1 Melee . | . . . Uniques/NPCs Destroyed . | . . . Combat | -11 -10 -9 -------- Run | Scr Mat Mat Damage Taken 3219 | . 483 2736 Core 455 | . 46 409 Absorbed by Shields . | . . . Core Remaining (%) 90 | 100 81 . Volleys Fired 114 | . 25 89 Largest 2 | . 2 2 Hottest 88 | . 85 88 Shots Fired 220 | . 50 170 Gun 210 | . 50 160 Cannon . | . . . Launcher 10 | . . 10 Special . | . . . Kinetic 114 | . 25 89 Thermal 96 | . 25 71 Explosive 10 | . . 10 Electromagnetic . | . . . Robot Hit Streak 23 | . 8 23 Robot Miss Streak 4 | . 4 3 Penetration Max . | . . . Secondary Targets 1 | . . 1 Max Gunslinging Chain 1 | . . 1 Shots Hit Robots 158 | . 31 127 Core Hits 60 | . 19 41 Critical Hits . | . . . Critical Kills . | . . . Critical Parts Destroyed . | . . . Melee Attacks . | . . . Impact . | . . . Slashing . | . . . Piercing . | . . . Sneak Attacks . | . . . Combat Hostiles . | . . . Follow-up Attacks . | . . . Damage Inflicted 2732 | . 496 2236 Guns 2335 | . 491 1844 Cannons . | . . . Explosions 362 | . . 362 Melee . | . . . Ramming 35 | . 5 30 Kinetic 1027 | . 154 873 Thermal 1308 | . 337 971 Explosive 362 | . . 362 Electromagnetic . | . . . Impact . | . . . Slashing . | . . . Piercing . | . . . Highest Corruption 4 | . 3 4 Average Corruption 1 | . 1 4 Corruption Purged . | . . . Effects 2 | . 2 . Data Loss (minor) 2 | . 2 . Overload Shots . | . . . Overflow Damage 7 | . . 7 Projectiles . | . . . Explosions 7 | . . 7 Melee . | . . . Knockbacks 1 | . . 1 Impact 1 | . . 1 Kinetic . | . . . Secondary . | . . . Self-Inflicted Damage 153 | . . 153 Shots 4 | . . 4 Rammed 8 | . 3 5 Targets Rammed 9 | . 3 6 Kicked . | . . . Crushed 1 | . . 1 Highest Temperature 428 | . 218 428 Average Temperature 75 | . 64 91 Received Heat Transfer 318 | . 57 261 Effects 2 | . . 2 Damage (major) 2 | . . 2 Siege Activations . | . . . Robots Corrupted . | . . . Combat Hostiles . | . . . Parts Fried . | . . . Impact Corruptions . | . . . Robots Melted . | . . . Combat Hostiles . | . . . Parts Melted 1 | . . 1 Heat Transferred 913 | . 180 733 Parts Sabotaged . | . . . Parts Stolen . | . . . Parts Stripped . | . . . Power Chain Reactions . | . . . Missiles Intercepted . | . . . Alert | -11 -10 -9 ------- Run | Scr Mat Mat Peak Influence 100 | . 15 100 Average Influence 22 | . 9 30 Maximum Alert Level . | . . . Low Security (%) 100 | . . . Level 1 . | . . . Level 2 . | . . . Level 3 . | . . . Level 4 . | . . . Level 5 . | . . . High Security . | . . . Max Security . | . . . Squads Dispatched 20 | . 3 17 Investigation 3 | . 1 2 Extermination . | . . . Reinforcement 3 | . 1 2 Assault 14 | . 1 13 Garrison . | . . . Intercept . | . . . Construction Impeded . | . . . Haulers Reinforced . | . . . Stealth | -11 -10 -9 --------- Run | Scr Mat Mat Distress Signals 15 | . 2 13 Communications Jammed . | . . . Distress Signals . | . . . Times Spotted 36 | . 11 25 Peak Tracking Total 4 | . 3 4 Tactical Retreats 5 | . . 5 Traps | -11 -10 -9 ------- Run | Scr Mat Mat Traps Triggered . | . . . Indirectly . | . . . Trap Hack Attempts . | . . . Triggered . | . . . Disarmed . | . . . Reprogrammed . | . . . Reused . | . . . Traps Extracted . | . . . Installed . | . . . Triggered . | . . . Machines | -11 -10 -9 ---------- Run | Scr Mat Mat Machines Disabled . | . . . Max in Single Turn . | . . . Machines Sabotaged . | . . . Garrisons Compromised . | . . . Overloaded Fab Kills . | . . . Fab Network Shutdowns . | . . . Hacking | -11 -10 -9 --------- Run | Scr Mat Mat Machines Accessed 2 | . 1 1 Terminals 2 | . 1 1 Fabricators . | . . . Repair Stations . | . . . Recycling Units . | . . . Scanalyzers . | . . . Garrison Access . | . . . Total Hacks 6 | . 3 3 Successful 2 | . 1 1 Failed 4 | . 2 2 Catastrophic 1 | . . 1 Database Lockouts . | . . . Manual 2 | . . 2 Terminals 6 | . 3 3 Fabricators . | . . . Repair Stations . | . . . Recycling Units . | . . . Scanalyzers . | . . . Garrison Access . | . . . Terminal Hacks 2 | . 1 1 Prototype ID Bank 1 | . 1 . Emergency Access Points 1 | . . 1 Fabricator Hacks . | . . . Repair Station Hacks . | . . . Recycling Unit Hacks . | . . . Scanalyzer . | . . . Garrison Access Hacks . | . . . Unauthorized Hacks . | . . . Terminals . | . . . Fabricators . | . . . Repair Stations . | . . . Recycling Units . | . . . Scanalyzers . | . . . Garrison Access . | . . . Data Cores Recovered . | . . . Used . | . . . Hacking Detections 2 | . 1 1 Full Trace Events 1 | . . 1 Feedback Events . | . . . Feedback Blocked . | . . . Robot Schematics Acquired . | . . . Robots Built . | . . . Matter . | . . . Time . | . . . Total Robot Build Rating . | . . . Part Schematics Acquired . | . . . Parts Built . | . . . Matter . | . . . Time . | . . . Total Part Build Rating . | . . . Parts Repaired . | . . . Time . | . . . Parts Recycled . | . . . Recycled Matter . | . . . Retrieved Matter . | . . . Retrieved Components . | . . . Parts Scanalyzed . | . . . Part Schematics Acquired . | . . . Parts Damaged . | . . . Bothacking | -11 -10 -9 ------------ Run | Scr Mat Mat Used RIF Installer . | . . . Robots Hacked . | . . . Non-combat . | . . . Combat . | . . . Robot Hacks Applied . | . . . Relay Couplers Released . | . . . Robots Rewired . | . . . Allies Hacked . | . . . Hacks Repelled . | . . . Allies | -11 -10 -9 -------- Run | Scr Mat Mat Total Allies . | . . . Largest Group . | . . . Highest-Rated Group . | . . . Highest-Rated Ally . | . . . Total Orders . | . . . Ally Attacks . | . . . Total Damage . | . . . Kills . | . . . Allies Corrupted . | . . . Allies Melted . | . . . Intel | -11 -10 -9 ------- Run | Scr Mat Mat Robot Analysis Total . | . . . Derelict Logs Recovered . | . . . Drone Launches . | . . . Drone Recoveries . | . . . Exploration | -11 -10 -9 ------------- Run | Scr Mat Mat Turns Passed 1865 | 63 576 1226 Spaces Moved 829 | 35 274 520 Core 4 | 4 . . Treads 825 | 31 274 520 Legs . | . . . Wheels . | . . . Hover . | . . . Flight . | . . . Fastest Speed 50 | 50 160 160 Average Speed 159 | 147 160 160 Slowest Speed 160 | 160 160 160 Overloaded Moves . | . . . Propulsion Burnouts . | . . . Robots Hopped . | . . . Cave-ins Triggered 1 | . . 1 Exploration Rate (%) 29 | 3 55 30 Regions Visited 2 Branch Regions . Pre-discovered Areas . | . . . Known Exits Taken . | . . . Unknown Exits Taken 2 | 1 1 . Scrap Searched . | . . . Spaces Dug 17 | . . 17 Terrain Destroyed 58 | . . 58 Melee . | . . . Projectile . | . . . AOE 58 | . . 58 Actions | -11 -10 -9 --------- Run | Scr Mat Mat Total 1073 | 47 330 696 Wait 46 | . 11 35 Move 827 | 34 273 520 Hop . | . . . Pick Up 33 | 8 11 14 Fast Attach 6 | . . 6 Attach 21 | 5 4 12 Detach . | . . . Swap 9 | . 1 8 Drop 8 | . 2 6 Fire 114 | . 25 89 Melee . | . . . Ram . | . . . Kick . | . . . Crush 9 | . 3 6 Escape Stasis . | . . . Rewire . | . . . Trap . | . . . Miscellaneous . | . . . Route ------- -11/Scrapyard -10/Materials -9/Materials History --------- Turn | Location | Event 10 | -11/Scrapyard | Discovered new exit (range 15) 64 | -11/Scrapyard | Entered Materials 300 | -10/Materials | Build established: Mutant 476 | -10/Materials | Discovered new exit (range 5) 616 | -10/Materials | Discovered new exit (range 15) 640 | -10/Materials | Entered another Materials area 640 | -9/Materials | Evolved 2 slots: Propulsion x1, Utility x1 1297 | -9/Materials | Build established: Scavenger-Mutant 1810 | -9/Materials | Crushed by falling debris 1810 | -9/Materials | Core integrity fell below 50% 1856 | -9/Materials | Core integrity fell below 20% 1866 | -9/Materials | Destroyed by Lesser Abomination with Etherial Claws Last Messages --------------- 71 Matter blinks away. Unstable Anomaly suddenly flashes brightly. 54 Matter blinks away. Slammed into Disintegrating Anomaly. Unstable Anomaly suddenly flashes brightly. Engulfed by violent ripples tearing at the fabric of space. Slammed into Unstable Anomaly. Unstable Anomaly suddenly flashes brightly. Engulfed by violent ripples tearing at the fabric of space. Acquired 5 matter. ALERT: Dispatching additional forces to engage threats. Engulfed by violent ripples tearing at the fabric of space. Assault Rifle destroyed. Lesser Abomination follow-up attacks with Mace. Slammed into Lesser Abomination. Lesser Abomination knocked back. Rocket Launcher destroyed. Destroyed Rocket Launcher. Lesser Abomination spits out Com. Wheel. Lesser Abomination absorbs Wheel. Map ----- +----------------------------------------------------+ | | | | | | | | | | | ???????????????????????????????????###########???? | | ???????????????????????????????????# #???? | | ???????????????????????????????????# #???? | | ???????????????????????????????????# ##### | | ???????????????????????????????????# + | | ?????????????????????????????? ?# #% | | ?????????????????????????????# %## # ## | | ??????????????????????????? ?# ## % # ## | | ??????????????????????????#+## ## # ## | | ??????????????????????????# * %###+######## ## | | ??????????????????????????# ## % #?## ## | | ??????????????????????????# ## % #?# # | | ??????????????????????????# = % ## %%"" ### | | ??????????????????????????# ## Y" # # | | ?????????????????????????## ## "" ### # | | ???????????????????#?###### ## %% """"+### | | ???????????????????+ % =% % #####/#"" ! % | | ?????????????????? """##### % %%%n %"% | | ??????????????????"""" ## #% % #""% | | ?????????????????? ### % % # " = | | ??????????????????"" /n %@A = # " | | ??????????????????""!### ###+####" " #! | | ??????????????????"" "### # #" # # | | ???????????????????" "# # % "#"=# #%= | | ???????????????????" "# # % T#"%# # | | ???????????????????" "# # % "#"%# ######## | | ???????????????????" "# % # #"%# ###= | | ?????????????????????"############+###" " # """ | | ?????????????????????????#### #""" "##### """ | | ????????????????????????????# % %+ =% [ / """ | | ????????????????????????????# %# ###### """ | | ????????????????????????????# %# * # #% | | ????????????????????????????#%% +%%=%### # """ | | ????????????????????????????# % % %# #??# # """ | | ????????????????????????????#####+## ###### """ | | ????????????????????????????????#%% % + " | | ??????????????????????????""????# ###### | | ??????????????????????????""""??# =!=%!###+# | | ???????????????????????# """"" # % =%T"!! | | ???????????????????????# | +|%% !%% "= | | ???????????????????????# """"" #* [! % | | ??????????????????????????""""??####+### % ##### | | ??????????????????????????""?????# %"# ##???? | | ?????????????????????????????????# "" #????? | | ?????????????????????????????????# "" #????? | +----------------------------------------------------+ Best States ------------- Heat Dissipation 42 Energy Generation 12 Energy Capacity 265 Matter Stores 450 Matter Capacity 450 Sight Range 16 Terrain Scan Density 85 Armor Coverage 150 Evasion (%) 40 Recoil Reduction 3 Item Schematics ----------------- None Robot Schematics ------------------ None Fabricated ------------ Nothing Alien Tech Used ----------------- None Achievements -------------- None Challenges ------------ None Game ------ Seed SuspensionRelayWand Manual? 0 Play Time 00:16:50 Cumulative 112.2 hours Start 2019.10.31 @ 21:51:46 End 2019.10.31 @ 22:07:02 Sessions 1 Manual Loads 0 Difficulty Rogue Special Mode Halloween2019/Abominations Game No. 119 Rogue 119 Adventurer 0 Explorer 0 Win Type - Total 1 Types 1/0/0/0/0/0/0 Lore% 61 Gallery% 60 Achievement% 46 Wizard Run 0 Options --------- ASCII 0 Keyboard 0 Movement Numpad Keybinds 0 Fullscreen 1 Font 12/Terminus Map View 83x54 Tactical HUD 0 Map Filters NONE Filters NONE Steam 1 RUN: 8e4ef432-7769-4460-bcd3-316f6cc51974